fUST/lending_fUST_20260622
["ID","MTS","AMOUNT","RATE_DAILY","PERIOD"]
[426000978,1782096639000,-500.0,0.00018858,2]
[426000979,1782096639000,-386.38,0.0001888,3]
[426000980,1782096639000,-268344.31530252,0.000189,2]
[426000981,1782096639000,-270.16146837,0.00018966,2]
[426000983,1782096639000,-200.0,0.00018999,2]
[426000986,1782096639000,-24855.84228313,0.00019,2]
[426000984,1782096639000,-5740.0,0.00019,2]
[426000985,1782096639000,-2603.49,0.00019,2]
[426000987,1782096639000,-500.0,0.0001913,2]
[426000975,1782096639000,-500.0,0.00018856,2]
[426000993,1782096639000,-248.161605,0.00019404,2]
[426001003,1782096639000,-500.0,0.0001968,2]
[426000990,1782096639000,-500.0,0.00019132,2]
[426000997,1782096639000,-500.0,0.00019406,2]
[426000996,1782096639000,-500.0,0.00019406,2]
[426000994,1782096639000,-173.41692,0.00019404,2]
[426000999,1782096639000,-341.85732712,0.00019437,2]
[426000992,1782096639000,-232.4434989,0.0001923,2]
[426000998,1782096639000,-537.00149357,0.00019406,2]
[426000995,1782096639000,-500.0,0.00019404,2]
[426000988,1782096639000,-500.0,0.00019132,2]
[426000989,1782096639000,-500.0,0.00019132,2]
[426000991,1782096639000,-426.33004593,0.000192,2]
[426001050,1782096640000,-3000.0,0.0002102,2]
[426001045,1782096640000,-500.0,0.00020776,2]
[426001058,1782096640000,-3000.0,0.0002107,2]
[426001051,1782096640000,-3000.0,0.0002103,2]
[426001049,1782096640000,-3000.0,0.0002101,2]
[426001047,1782096640000,-223.345445,0.00020981,2]
[426001048,1782096640000,-3000.0,0.00021,2]
[426001044,1782096640000,-500.0,0.00020776,2]
[426001040,1782096640000,-1000.0,0.00020674,2]
[426001046,1782096640000,-411.78469418,0.00020935,2]
[426001043,1782096640000,-1000.0,0.00020674,2]
[426001041,1782096640000,-1000.0,0.00020674,2]
[426001042,1782096640000,-1000.0,0.00020674,2]
[426001039,1782096640000,-854.6433178,0.00020646,2]
[426001037,1782096640000,-372.712476,0.0002058,2]
[426001036,1782096640000,-158.21,0.00020548,6]
[426001035,1782096640000,-500.0,0.00020502,2]
[426001034,1782096640000,-500.0,0.00020502,2]
[426001032,1782096640000,-310.75256431,0.00020395,60]
[426001031,1782096640000,-780.35970602,0.00020301,2]
[426001054,1782096640000,-500.0,0.0002105,2]
[426001033,1782096640000,-1065.47830572,0.00020437,7]
[426001038,1782096640000,-975.44963252,0.00020646,2]
[426001052,1782096640000,-3000.0,0.0002104,2]
[426001056,1782096640000,-1500.0,0.00021051,2]
[426001057,1782096640000,-3000.0,0.0002106,2]
[426001053,1782096640000,-3000.0,0.0002105,2]
[426001081,1782096640000,-92.55148567,0.00019406,2]
[426001080,1782096640000,-1099.47,0.00019132,2]
[426001079,1782096640000,-1099.47,0.00018858,2]
[426001078,1782096640000,-1099.47,0.00018584,2]
[426001076,1782096640000,-1099.47,0.00018036,2]
[426001077,1782096640000,-1099.47,0.0001831,2]
[426001074,1782096640000,-828.035051,0.00017762,2]
[426001072,1782096640000,-236737.10931071,0.00021373,2]
[426001073,1782096640000,-1808.66404612,0.00021373,2]
[426001070,1782096640000,-200.0,0.00021372,2]
[426001075,1782096640000,-271.434949,0.00017762,2]
[426001069,1782096640000,-209.843,0.00021362,3]
[426001055,1782096640000,-500.0,0.0002105,2]
[426001059,1782096640000,-5134.504297,0.0002108,2]
[426001060,1782096640000,-1170.53955903,0.00021165,2]
[426001062,1782096640000,-152.0,0.00021295,2]
[426001061,1782096640000,-1542.47487593,0.00021253,2]
[426001067,1782096640000,-151.0,0.00021362,2]
[426001064,1782096640000,-500.0,0.00021324,2]
[426001065,1782096640000,-500.0,0.00021324,2]
[426001068,1782096640000,-187.634,0.00021362,2]
[426001066,1782096640000,-151.0,0.00021362,2]
[426001071,1782096640000,-200.0,0.00021372,2]
[426001104,1782096643000,-1006.91851433,0.00019406,2]
[426001105,1782096643000,-252.7979935,0.0001968,2]
[426001111,1782096646000,-304.0,0.00017584,2]
[426001112,1782096745000,264.79425921,0.00023073,120]
[426001113,1782096745000,264.79425921,0.00023073,120]
[426001114,1782096865000,264.7942592,0.00023073,120]
[426001115,1782096865000,190.97924796,0.00017863,120]
[426001116,1782096904000,1297.0,0.0002163,120]
[426001117,1782096905000,1297.0,0.00022711,120]
[426001118,1782096928000,1888.0,0.00021744,120]
[426001119,1782096929000,1888.0,0.00022832,120]
[426001122,1782096999000,614.37886853,0.0002054,120]
[426001126,1782097032000,188.0,0.0002,120]
[426001128,1782097051000,239.86651442,0.0002,120]
[426001127,1782097051000,758.59180356,0.00017,120]
[426001129,1782097061000,372.50117806,0.00023073,120]
[426001130,1782097063000,441.19564509,0.00022372,120]
[426001131,1782097065000,249.0,0.0002,120]
[426001132,1782097210000,908.0,0.0002165,120]
[426001133,1782097212000,908.0,0.00022732,120]
[426001134,1782097233000,1133.0,0.00021762,120]
[426001135,1782097234000,1133.0,0.0002285,120]
[426001136,1782097292000,-573.2471028,0.00015782,2]
[426001137,1782097512000,636.0,0.00021662,120]
[426001138,1782097513000,636.0,0.00022745,120]
[426001139,1782097532000,680.0,0.00021773,120]
[426001140,1782097534000,680.0,0.00022861,120]
[426001165,1782097813000,445.0,0.0002167,120]
[426001166,1782097814000,445.0,0.00022754,120]
[426001303,1782097834000,408.0,0.0002178,120]
[426001304,1782097835000,408.0,0.00022869,120]
[426001322,1782097838000,-165.78315501,0.000184,2]
[426001324,1782097838000,-155.0,0.00018877,3]
[426001326,1782097838000,-152.902,0.00018911,2]
[426001329,1782097838000,-153.3306939,0.00019797,2]
[426001330,1782097838000,-547.70195382,0.00019897,2]
[426001325,1782097838000,-165.3960551,0.00018896,2]
[426001331,1782097838000,-256.29169061,0.00019897,2]
[426001323,1782097838000,-186.0,0.00018571,2]
[426001332,1782097838000,-547.70195382,0.00019897,2]
[426001327,1782097838000,-1000.0,0.00019,2]
[426001312,1782097838000,-500.0,0.00016438,2]
[426001313,1782097838000,-500.0,0.00016712,2]
[426001317,1782097838000,-329.77717296,0.0001726,2]
[426001318,1782097838000,-160.0,0.0001775,2]
[426001328,1782097838000,-2397.44334669,0.00019797,2]
[426001314,1782097838000,-190.97924797,0.00016969,2]
[426001316,1782097838000,-1000.0,0.00017,2]
[426001319,1782097838000,-1000.0,0.00018,2]
[426001321,1782097838000,-165.78315501,0.000184,2]
[426001315,1782097838000,-500.0,0.00016986,2]
[426001311,1782097838000,-408.76111609,0.00016438,2]
[426001310,1782097838000,-771.06558199,0.00014313,2]
[426001309,1782097838000,-5000.0,0.00013771,2]
[426001320,1782097838000,-165.78315503,0.000184,2]
[426001334,1782097838000,-547.70195382,0.00019897,2]
[426001333,1782097838000,-547.70195382,0.00019897,2]
[426001340,1782097838000,-547.70195382,0.00019897,2]
[426001360,1782097838000,-547.70195382,0.00019897,2]
[426001336,1782097838000,-547.70195382,0.00019897,2]
[426001361,1782097838000,-547.70195382,0.00019897,2]
[426001359,1782097838000,-547.70195382,0.00019897,2]
[426001357,1782097838000,-547.70195382,0.00019897,2]
[426001356,1782097838000,-547.70195382,0.00019897,2]
[426001353,1782097838000,-547.70195382,0.00019897,2]
[426001355,1782097838000,-547.70195382,0.00019897,2]
[426001352,1782097838000,-547.70195382,0.00019897,2]
[426001349,1782097838000,-547.70195382,0.00019897,2]
[426001351,1782097838000,-547.70195382,0.00019897,2]
[426001350,1782097838000,-547.70195382,0.00019897,2]
[426001347,1782097838000,-547.70195382,0.00019897,2]
[426001354,1782097838000,-547.70195382,0.00019897,2]
[426001358,1782097838000,-547.70195382,0.00019897,2]
[426001339,1782097838000,-547.70195382,0.00019897,2]
[426001348,1782097838000,-547.70195382,0.00019897,2]
[426001337,1782097838000,-547.70195382,0.00019897,2]
[426001338,1782097838000,-547.70195382,0.00019897,2]
[426001335,1782097838000,-547.70195382,0.00019897,2]
[426001345,1782097838000,-547.70195382,0.00019897,2]
[426001346,1782097838000,-547.70195382,0.00019897,2]
[426001343,1782097838000,-547.70195382,0.00019897,2]
[426001344,1782097838000,-547.70195382,0.00019897,2]
[426001342,1782097838000,-547.70195382,0.00019897,2]
[426001341,1782097838000,-547.70195382,0.00019897,2]
[426001375,1782097839000,-547.70195382,0.00019897,2]
[426001385,1782097839000,-544.81931197,0.00019897,2]
[426001387,1782097839000,-544.81931197,0.00019897,2]
[426001386,1782097839000,-544.81931197,0.00019897,2]
[426001384,1782097839000,-547.70195382,0.00019897,2]
[426001380,1782097839000,-547.70195382,0.00019897,2]
[426001379,1782097839000,-547.70195382,0.00019897,2]
[426001381,1782097839000,-547.70195382,0.00019897,2]
[426001378,1782097839000,-547.70195382,0.00019897,2]
[426001377,1782097839000,-547.70195382,0.00019897,2]
[426001373,1782097839000,-547.70195382,0.00019897,2]
[426001383,1782097839000,-547.70195382,0.00019897,2]
[426001362,1782097839000,-547.70195382,0.00019897,2]
[426001376,1782097839000,-547.70195382,0.00019897,2]
[426001372,1782097839000,-547.70195382,0.00019897,2]
[426001371,1782097839000,-547.70195382,0.00019897,2]
[426001382,1782097839000,-547.70195382,0.00019897,2]
[426001365,1782097839000,-547.70195382,0.00019897,2]
[426001369,1782097839000,-547.70195382,0.00019897,2]
[426001368,1782097839000,-547.70195382,0.00019897,2]
[426001363,1782097839000,-547.70195382,0.00019897,2]
[426001367,1782097839000,-547.70195382,0.00019897,2]
[426001366,1782097839000,-547.70195382,0.00019897,2]
[426001370,1782097839000,-547.70195382,0.00019897,2]
[426001390,1782097839000,-544.81931197,0.00019897,2]
[426001374,1782097839000,-547.70195382,0.00019897,2]
[426001395,1782097839000,-544.81931197,0.00019897,2]
[426001364,1782097839000,-547.70195382,0.00019897,2]
[426001388,1782097839000,-544.81931197,0.00019897,2]
[426001417,1782097839000,-544.81931197,0.00019897,2]
[426001414,1782097839000,-285.70773442,0.00019897,2]
[426001418,1782097839000,-397.79482664,0.00019897,2]
[426001411,1782097839000,-544.81931197,0.00019897,2]
[426001416,1782097839000,-544.81931197,0.00019897,2]
[426001413,1782097839000,-544.81931197,0.00019897,2]
[426001415,1782097839000,-259.11157755,0.00019897,2]
[426001412,1782097839000,-544.81931197,0.00019897,2]
[426001409,1782097839000,-544.81931197,0.00019897,2]
[426001410,1782097839000,-544.81931197,0.00019897,2]
[426001408,1782097839000,-544.81931197,0.00019897,2]
[426001402,1782097839000,-544.81931197,0.00019897,2]
[426001389,1782097839000,-544.81931197,0.00019897,2]
[426001404,1782097839000,-544.81931197,0.00019897,2]
[426001405,1782097839000,-544.81931197,0.00019897,2]
[426001401,1782097839000,-544.81931197,0.00019897,2]
[426001399,1782097839000,-544.81931197,0.00019897,2]
[426001406,1782097839000,-544.81931197,0.00019897,2]
[426001403,1782097839000,-544.81931197,0.00019897,2]
[426001398,1782097839000,-544.81931197,0.00019897,2]
[426001396,1782097839000,-544.81931197,0.00019897,2]
[426001397,1782097839000,-544.81931197,0.00019897,2]
[426001407,1782097839000,-544.81931197,0.00019897,2]
[426001394,1782097839000,-544.81931197,0.00019897,2]
[426001392,1782097839000,-544.81931197,0.00019897,2]
[426001391,1782097839000,-544.81931197,0.00019897,2]
[426001393,1782097839000,-544.81931197,0.00019897,2]
[426001400,1782097839000,-544.81931197,0.00019897,2]
[426001447,1782097840000,-398.406,0.00019698,2]
[426001448,1782097841000,-4023.76277647,0.00019698,2]
[426001449,1782097841000,-147.02448533,0.00019897,2]
[426001452,1782097841000,-236.80847272,0.00019897,2]
[426001450,1782097841000,-544.81931197,0.00019897,2]
[426001451,1782097841000,-544.81931197,0.00019897,2]
[426001481,1782097846000,-265.608,0.0002,2]
[426001480,1782097846000,-886.37485644,0.0002,2]
[426001479,1782097846000,-153.33069389,0.00019948,2]
[426001477,1782097846000,-544.81931197,0.00019897,2]
[426001478,1782097846000,-544.81931194,0.00019897,2]
[426001476,1782097846000,-308.01083925,0.00019897,2]
[426001483,1782097930000,224.1422944,0.00023287,120]
[426001484,1782098109000,312.0,0.00020843,120]
[426001485,1782098111000,312.0,0.00021886,120]
[426001486,1782098112000,312.0,0.0002298,120]
[426001487,1782098140000,245.0,0.00021511,120]
[426001489,1782098142000,245.0,0.00022586,120]
[426001491,1782098417000,187.0,0.00021576,120]
[426001492,1782098418000,187.0,0.00022654,120]
[426001493,1782098432000,163.0,0.00021785,120]
[426001494,1782098434000,163.0,0.00022874,120]
[426001495,1782098709000,160.0,0.0002177,120]
[426001496,1782098710000,160.0,0.00022859,120]
[426001497,1782098741000,164.0,0.00021951,120]
[426001498,1782098743000,164.0,0.00023049,120]
[426001501,1782099010000,161.0,0.00021922,120]
[426001502,1782099012000,161.0,0.00023018,120]
[426001503,1782099028000,165.0,0.00022094,120]
[426001510,1782099032000,-864.50360605,0.00019871,2]
[426001509,1782099032000,-670.837,0.00019455,2]
[426001508,1782099032000,-446.9536955,0.00019057,2]
[426001506,1782099032000,-272.4428766,0.00013636,2]
[426001507,1782099032000,-186.0,0.00018993,2]
[426001578,1782099038000,-2282.40420395,0.00019871,2]
[426001582,1782099038000,-260.84150896,0.00019897,2]
[426001579,1782099038000,-191.42893935,0.00019897,2]
[426001580,1782099038000,-197.03755154,0.00019897,2]
[426001581,1782099038000,-83.73058187,0.00019897,2]
[426001583,1782099038000,-354.66759277,0.00019897,2]
[426001613,1782099039000,-845.87700273,0.00020194,2]
[426001585,1782099039000,-630.52016492,0.00019897,2]
[426001595,1782099039000,-500.0,0.00020194,2]
[426001584,1782099039000,-612.57260591,0.00019897,2]
[426001594,1782099039000,-1067.13943395,0.00020194,2]
[426001586,1782099039000,-661.94213042,0.0002,2]
[426001591,1782099039000,-710.49,0.00020187,3]
[426001596,1782099039000,-1067.13943395,0.00020194,2]
[426001590,1782099039000,-152.902,0.00020171,2]
[426001588,1782099039000,-651.65544903,0.00020097,2]
[426001587,1782099039000,-2778.33303553,0.00020095,2]
[426001589,1782099039000,-374.09700339,0.00020104,2]
[426001592,1782099039000,-233.32289626,0.00020194,2]
[426001593,1782099039000,-500.0,0.00020194,2]
[426001597,1782099039000,-160.6614356,0.00020194,2]
[426001606,1782099039000,-7381.62049229,0.00020197,2]
[426001610,1782099039000,-1067.13943395,0.00020194,2]
[426001612,1782099039000,-4492.62833433,0.00020197,2]
[426001611,1782099039000,-1067.13943395,0.00020194,2]
[426001608,1782099039000,-197757.0750554,0.00020197,2]
[426001609,1782099039000,-141881.03385903,0.00020197,2]
[426001601,1782099039000,-1067.13943395,0.00020194,2]
[426001605,1782099039000,-200.0,0.00020196,2]
[426001602,1782099039000,-1067.13943395,0.00020194,2]
[426001604,1782099039000,-1067.13943395,0.00020194,2]
[426001603,1782099039000,-1067.13943395,0.00020194,2]
[426001599,1782099039000,-1067.13943395,0.00020194,2]
[426001607,1782099039000,-10209.98579081,0.00020197,2]
[426001600,1782099039000,-1067.13943395,0.00020194,2]
[426001598,1782099039000,-1067.13943395,0.00020194,2]
[426001663,1782099041000,-531.34594772,0.00020194,2]
[426001661,1782099041000,-221.26243122,0.00020194,2]
[426001670,1782099041000,-414.12432266,0.00020194,2]
[426001679,1782099041000,-524.29872137,0.00020194,2]
[426001677,1782099041000,-121.66916357,0.00020194,2]
[426001779,1782099043000,-421.3265632,0.00020194,2]
[426001784,1782099044000,-393.67142877,0.00020194,2]
[426001781,1782099044000,-1067.13943395,0.00020194,2]
[426001783,1782099044000,-233.39738272,0.00020194,2]
[426001782,1782099044000,-1067.13943395,0.00020194,2]
[426001780,1782099044000,-121.51414938,0.00020194,2]
[426001788,1782099046000,-440.07062246,0.00020194,2]
[426001789,1782099046000,-1067.13943395,0.00020194,2]
[426001795,1782099046000,-1067.13943395,0.00020194,2]
[426001794,1782099046000,-1067.13943395,0.00020194,2]
[426001792,1782099046000,-1067.13943395,0.00020194,2]
[426001791,1782099046000,-1067.13943395,0.00020194,2]
[426001793,1782099046000,-1067.13943395,0.00020194,2]
[426001790,1782099046000,-1067.13943395,0.00020194,2]
[426001798,1782099046000,-1067.13943395,0.00020194,2]
[426001797,1782099046000,-875.55510754,0.00020194,2]
[426001799,1782099046000,-1067.13943395,0.00020194,2]
[426001800,1782099046000,-1067.13943395,0.00020194,2]
[426001801,1782099046000,-1067.13943395,0.00020194,2]
[426001802,1782099046000,-1067.13943395,0.00020194,2]
[426001803,1782099046000,-1067.13943395,0.00020194,2]
[426001796,1782099046000,-191.58432641,0.00020194,2]
[426001816,1782099047000,-1067.13943395,0.00020194,2]
[426001810,1782099047000,-1067.13943395,0.00020194,2]
[426001806,1782099047000,-1067.13943395,0.00020194,2]
[426001808,1782099047000,-556.69860733,0.00020194,2]
[426001804,1782099047000,-1067.13943395,0.00020194,2]
[426001809,1782099047000,-1067.13943395,0.00020194,2]
[426001814,1782099047000,-1067.13943395,0.00020194,2]
[426001807,1782099047000,-510.44082662,0.00020194,2]
[426001813,1782099047000,-1067.13943395,0.00020194,2]
[426001805,1782099047000,-1067.13943395,0.00020194,2]
[426001812,1782099047000,-1067.13943395,0.00020194,2]
[426001821,1782099047000,-1067.13943395,0.00020194,2]
[426001820,1782099047000,-1067.13943395,0.00020194,2]
[426001815,1782099047000,-1067.13943395,0.00020194,2]
[426001818,1782099047000,-1067.13943395,0.00020194,2]
[426001824,1782099047000,-416.8001,0.00020197,2]
[426001811,1782099047000,-1067.13943395,0.00020194,2]
[426001819,1782099047000,-1067.13943395,0.00020194,2]
[426001822,1782099047000,-1067.13943395,0.00020194,2]
[426001823,1782099047000,-68254.37510829,0.00020197,2]
[426001817,1782099047000,-1067.13943395,0.00020194,2]
[426001825,1782099313000,445.0,0.00020507,120]
[426001826,1782099314000,445.0,0.00021532,120]
[426001827,1782099315000,445.0,0.00022608,120]
[426001828,1782099332000,468.0,0.00020609,120]
[426001829,1782099334000,468.0,0.0002164,120]
[426001830,1782099335000,468.0,0.00022722,120]
[426001834,1782099609000,312.0,0.0002051,120]
[426001835,1782099610000,312.0,0.00021536,120]
[426001836,1782099612000,312.0,0.00022612,120]
[426001837,1782099631000,280.0,0.00020612,120]
[426001838,1782099632000,280.0,0.00021642,120]
[426001839,1782099634000,280.0,0.00022724,120]
[426001840,1782099820000,896.2843909,0.00023078,30]
[426001841,1782099909000,218.0,0.00020517,120]
[426001842,1782099910000,218.0,0.00021543,120]
[426001843,1782099911000,218.0,0.0002262,120]
[426001845,1782099959000,168.0,0.0002062,120]
[426001846,1782099961000,168.0,0.00021651,120]
[426001847,1782099963000,168.0,0.00022733,120]
[426001849,1782100210000,170.0,0.0002052,120]
[426001850,1782100211000,170.0,0.00021546,120]
[426001851,1782100212000,170.0,0.00022623,120]
[426001898,1782100232000,-3142.00522956,0.00016921,2]
[426001942,1782100233000,169.0,0.00020623,120]
[426001943,1782100234000,169.0,0.00021654,120]
[426001944,1782100235000,169.0,0.00022736,120]
[426002013,1782100242000,-263.08735685,0.00017092,2]
[426002012,1782100242000,-885.44109003,0.00016921,2]
[426002027,1782100247000,-800.0,0.00017265,5]
[426002030,1782100508000,170.0,0.00020577,120]
[426002031,1782100509000,170.0,0.00021606,120]
[426002032,1782100511000,170.0,0.00022686,120]
[426002033,1782100528000,170.0,0.00020685,120]
[426002034,1782100530000,170.0,0.00021719,120]
[426002039,1782100805000,170.0,0.00020587,120]
[426002040,1782100807000,170.0,0.00021616,120]
[426002041,1782100808000,170.0,0.00022697,120]
[426002044,1782100837000,576.0,0.00018636,120]
[426002045,1782100838000,576.0,0.00019568,120]
[426002046,1782100839000,576.0,0.00020546,120]
[426002047,1782100840000,576.0,0.00021573,120]
[426002048,1782100841000,500.0,0.00023081,120]
[426002049,1782100842000,576.0,0.00022652,120]
[426002051,1782100891000,-3846.95474645,0.00016,3]
[426002052,1782100908000,570.0,0.00023081,120]
[426002053,1782100928000,600.0,0.00022,120]
[426002056,1782100982000,500.0,0.00023081,120]
[426002060,1782101162000,231.0,0.00020779,120]
[426002061,1782101166000,231.0,0.00021818,120]
[426002062,1782101169000,231.0,0.00022909,120]
[426002166,1782101434000,173.0,0.00020791,120]
[426002167,1782101436000,173.0,0.00021831,120]
[426002179,1782101437000,173.0,0.00022922,120]
[426002239,1782101438000,-500.0,0.00017672,2]
[426002241,1782101438000,-469.28202902,0.00017672,2]
[426002248,1782101438000,-500.0,0.00017672,2]
[426002242,1782101438000,-500.0,0.00017672,2]
[426002246,1782101438000,-500.0,0.00017672,2]
[426002251,1782101438000,-500.0,0.00017672,2]
[426002245,1782101438000,-500.0,0.00017672,2]
[426002247,1782101438000,-500.0,0.00017672,2]
[426002243,1782101438000,-500.0,0.00017672,2]
[426002250,1782101438000,-394.02231714,0.00017672,2]
[426002234,1782101438000,-12826.75855219,0.00017265,5]
[426002238,1782101438000,-500.0,0.00017533,2]
[426002236,1782101438000,-1876.72055795,0.00017265,5]
[426002233,1782101438000,-500.0,0.00017259,2]
[426002232,1782101438000,-377.64150226,0.00017133,2]
[426002228,1782101438000,-984.20256992,0.00016448,2]
[426002230,1782101438000,-782.0,0.00017,2]
[426002226,1782101438000,-5493.09758009,0.00016,3]
[426002223,1782101438000,-956.18755204,0.00015626,2]
[426002224,1782101438000,-1745.00912182,0.00015682,2]
[426002249,1782101438000,-500.0,0.00017672,2]
[426002240,1782101438000,-500.0,0.00017672,2]
[426002244,1782101438000,-500.0,0.00017672,2]
[426002263,1782101438000,-621.05337865,0.00017672,2]
[426002272,1782101438000,-500.0,0.00017672,2]
[426002276,1782101438000,-490.12234338,0.00017672,2]
[426002271,1782101438000,-250.29951733,0.00017672,2]
[426002274,1782101438000,-500.0,0.00017672,2]
[426002273,1782101438000,-500.0,0.00017672,2]
[426002275,1782101438000,-500.0,0.00017672,2]
[426002270,1782101438000,-500.0,0.00017672,2]
[426002268,1782101438000,-500.0,0.00017672,2]
[426002269,1782101438000,-378.30744259,0.00017672,2]
[426002267,1782101438000,-500.0,0.00017672,2]
[426002260,1782101438000,-500.0,0.00017672,2]
[426002266,1782101438000,-500.0,0.00017672,2]
[426002259,1782101438000,-500.0,0.00017672,2]
[426002264,1782101438000,-500.0,0.00017672,2]
[426002253,1782101438000,-500.0,0.00017672,2]
[426002262,1782101438000,-500.0,0.00017672,2]
[426002255,1782101438000,-500.0,0.00017672,2]
[426002257,1782101438000,-500.0,0.00017672,2]
[426002265,1782101438000,-500.0,0.00017672,2]
[426002261,1782101438000,-500.0,0.00017672,2]
[426002256,1782101438000,-401.65758877,0.00017672,2]
[426002258,1782101438000,-500.0,0.00017672,2]
[426002254,1782101438000,-500.0,0.00017672,2]
[426002252,1782101438000,-500.0,0.00017672,2]
[426002305,1782101440000,-300.42515809,0.00017672,2]
[426002303,1782101440000,-500.0,0.00017672,2]
[426002304,1782101440000,-500.0,0.00017672,2]
[426002301,1782101440000,-9.87765662,0.00017672,2]
[426002302,1782101440000,-500.0,0.00017672,2]
[426002345,1782101446000,-40.43231664,0.00017672,2]
[426002346,1782101446000,-3101.15215514,0.00017761,2]
[426002348,1782101446000,-297.80313097,0.00017761,2]
[426002347,1782101446000,-6405.33234433,0.00017761,2]
[426002349,1782101732000,174.0,0.00022477,120]
[426002559,1782102638000,-170.81492677,0.00017055,2]
[426002579,1782102638000,-500.0,0.00017055,2]
[426002577,1782102638000,-544.24111132,0.00017055,2]
[426002569,1782102638000,-544.24111132,0.00017055,2]
[426002573,1782102638000,-544.24111132,0.00017055,2]
[426002567,1782102638000,-500.0,0.00017055,2]
[426002565,1782102638000,-544.24111132,0.00017055,2]
[426002571,1782102638000,-544.24111132,0.00017055,2]
[426002561,1782102638000,-544.24111132,0.00017055,2]
[426002563,1782102638000,-500.0,0.00017055,2]
[426002557,1782102638000,-500.0,0.00017055,2]
[426002555,1782102638000,-544.24111132,0.00017055,2]
[426002575,1782102638000,-500.0,0.00017055,2]
[426002532,1782102638000,-1605.7584725,0.00016055,2]
[426002539,1782102638000,-656.65,0.00017048,3]
[426002534,1782102638000,-8585.9731565,0.00016055,2]
[426002551,1782102638000,-503.86149722,0.00017055,2]
[426002538,1782102638000,-218.87,0.00017048,3]
[426002530,1782102638000,-300.0,0.00016054,2]
[426002547,1782102638000,-544.24111132,0.00017055,2]
[426002545,1782102638000,-633.02594251,0.00017055,2]
[426002549,1782102638000,-211.77146049,0.00017055,2]
[426002543,1782102638000,-500.0,0.00017055,2]
[426002541,1782102638000,-322.79332159,0.00017055,2]
[426002528,1782102638000,-552.64965066,0.00015735,2]
[426002536,1782102638000,-152.902,0.00016717,2]
[426002581,1782102638000,-544.24111132,0.00017055,2]
[426002633,1782102638000,-544.24111132,0.00017055,2]
[426002588,1782102638000,-500.0,0.00017055,2]
[426002635,1782102638000,-544.24111132,0.00017055,2]
[426002625,1782102638000,-544.24111132,0.00017055,2]
[426002629,1782102638000,-544.24111132,0.00017055,2]
[426002631,1782102638000,-544.24111132,0.00017055,2]
[426002624,1782102638000,-544.24111132,0.00017055,2]
[426002627,1782102638000,-544.24111132,0.00017055,2]
[426002622,1782102638000,-544.24111132,0.00017055,2]
[426002620,1782102638000,-544.24111132,0.00017055,2]
[426002585,1782102638000,-500.0,0.00017055,2]
[426002603,1782102638000,-544.24111132,0.00017055,2]
[426002605,1782102638000,-544.24111132,0.00017055,2]
[426002601,1782102638000,-544.24111132,0.00017055,2]
[426002598,1782102638000,-544.24111132,0.00017055,2]
[426002607,1782102638000,-544.24111132,0.00017055,2]
[426002611,1782102638000,-544.24111132,0.00017055,2]
[426002583,1782102638000,-544.24111132,0.00017055,2]
[426002619,1782102638000,-544.24111132,0.00017055,2]
[426002590,1782102638000,-544.24111132,0.00017055,2]
[426002592,1782102638000,-500.0,0.00017055,2]
[426002594,1782102638000,-544.24111132,0.00017055,2]
[426002586,1782102638000,-544.24111132,0.00017055,2]
[426002599,1782102638000,-544.24111132,0.00017055,2]
[426002609,1782102638000,-544.24111132,0.00017055,2]
[426002615,1782102638000,-544.24111132,0.00017055,2]
[426002617,1782102638000,-544.24111132,0.00017055,2]
[426002613,1782102638000,-544.24111132,0.00017055,2]
[426002596,1782102638000,-500.0,0.00017055,2]
[426002637,1782102639000,-544.24111132,0.00017055,2]